fUST/lending_fUST_20250720
["ID","MTS","AMOUNT","RATE_DAILY","PERIOD"]
[373348861,1752960639480,-460.0,0.00019142,2]
[373348862,1752960639489,-460.0,0.00019142,2]
[373348863,1752960639499,-500.0,0.00019142,2]
[373348864,1752960639509,-460.0,0.00019142,2]
[373348865,1752960639518,-460.0,0.00019142,2]
[373348866,1752960639527,-460.0,0.00019142,2]
[373348867,1752960639536,-460.0,0.00019142,2]
[373348868,1752960639546,-460.0,0.00019142,2]
[373348869,1752960639555,-460.0,0.00019142,2]
[373348870,1752960639564,-460.0,0.00019142,2]
[373348871,1752960639574,-460.0,0.00019142,2]
[373348872,1752960639583,-460.0,0.00019142,2]
[373348873,1752960639593,-460.0,0.00019142,2]
[373348874,1752960639602,-460.0,0.00019142,2]
[373348875,1752960639612,-460.0,0.00019142,2]
[373348876,1752960639622,-460.0,0.00019143,2]
[373348877,1752960639631,-460.0,0.00019143,2]
[373348878,1752960639641,-460.0,0.00019143,2]
[373348879,1752960639651,-460.0,0.00019143,2]
[373348880,1752960639660,-460.0,0.00019143,2]
[373348881,1752960639670,-460.0,0.00019143,2]
[373348882,1752960639680,-460.0,0.00019143,2]
[373348883,1752960639690,-460.0,0.00019143,2]
[373348884,1752960639699,-460.0,0.00019143,2]
[373348885,1752960639709,-479.16,0.00019143,2]
[373348886,1752960639718,-460.0,0.00019143,2]
[373348887,1752960639728,-460.0,0.00019143,2]
[373348888,1752960639737,-216.39681154,0.00019143,2]
[373348889,1752960639748,-500.0,0.00019143,2]
[373348890,1752960639757,-151.0,0.00019143,2]
[373348891,1752960639767,-500.0,0.00019173,2]
[373348892,1752960639776,-452.85815076,0.00019173,2]
[373348893,1752960639786,-504.22089586,0.00019173,2]
[373348894,1752960639795,-500.0,0.00019173,2]
[373348895,1752960639804,-666.0,0.00019178,2]
[373348896,1752960639813,-397.817631,0.00019178,2]
[373348897,1752960639823,-500.0,0.00019276,2]
[373348898,1752960639832,-358.62583903,0.00019277,2]
[373348899,1752960639842,-58192.92830392,0.00019329,2]
[373348900,1752960639851,-160.0,0.0001939,2]
[373348901,1752960639860,-460.0,0.00019413,2]
[373348902,1752960639870,-565.49,0.00019413,2]
[373348903,1752960639879,-460.0,0.00019414,2]
[373348904,1752960639889,-427.84210958,0.00019414,2]
[373348905,1752960639900,-460.0,0.00019414,2]
[373348906,1752960639909,-460.0,0.00019414,2]
[373348907,1752960639919,-460.0,0.00019414,2]
[373348908,1752960639930,-1477.4,0.00019414,2]
[373348909,1752960639939,-824.34,0.00019414,2]
[373348910,1752960639948,-460.0,0.00019414,2]
[373348911,1752960639958,-1094.54,0.00019414,2]
[373348912,1752960639967,-460.0,0.00019414,2]
[373348914,1752960639977,-932.63,0.00019414,2]
[373348915,1752960639987,-578.0,0.00019414,2]
[373348916,1752960639996,-460.0,0.00019414,2]
[373348918,1752960640005,-1056.61,0.00019414,2]
[373348919,1752960640014,-460.0,0.00019414,2]
[373348920,1752960640024,-476.76,0.00019414,2]
[373348921,1752960640033,-532.67,0.00019414,2]
[373348923,1752960640042,-528.44,0.00019414,2]
[373348924,1752960640052,-460.0,0.00019414,2]
[373348925,1752960640062,-460.0,0.00019414,2]
[373348926,1752960640071,-151.0,0.00019414,2]
[373348927,1752960640081,-460.0,0.00019414,2]
[373348928,1752960640094,-460.0,0.00019414,2]
[373348929,1752960640103,-460.0,0.00019414,2]
[373348930,1752960640113,-460.0,0.00019415,2]
[373348931,1752960640122,-460.0,0.00019415,2]
[373348932,1752960640133,-460.0,0.00019415,2]
[373348933,1752960640143,-460.0,0.00019415,2]
[373348934,1752960640154,-460.0,0.00019415,2]
[373348935,1752960640164,-460.0,0.00019415,2]
[373348936,1752960640174,-460.0,0.00019415,2]
[373348937,1752960640183,-388.67480852,0.00019415,2]
[373348938,1752960640193,-460.0,0.00019415,2]
[373348939,1752960640203,-460.0,0.00019415,2]
[373348940,1752960640212,-460.0,0.00019415,2]
[373348941,1752960640222,-460.0,0.00019415,2]
[373348942,1752960640232,-460.0,0.00019415,2]
[373348943,1752960640242,-460.0,0.00019415,2]
[373348944,1752960640251,-460.0,0.00019415,2]
[373348945,1752960640261,-460.0,0.00019415,2]
[373348946,1752960640271,-331.06121522,0.00019415,2]
[373348947,1752960640280,-460.0,0.00019415,2]
[373348948,1752960640290,-460.0,0.00019415,2]
[373348949,1752960640299,-500.0,0.00019415,2]
[373348950,1752960640309,-1106.36,0.00019415,2]
[373348951,1752960640319,-460.0,0.00019415,2]
[373348952,1752960640329,-460.0,0.00019415,2]
[373348953,1752960640339,-460.0,0.00019415,2]
[373348954,1752960640349,-294.82495466,0.00019415,2]
[373348955,1752960640359,-460.0,0.00019415,2]
[373348956,1752960640368,-460.0,0.00019415,2]
[373348957,1752960640378,-618.95,0.00019415,2]
[373348958,1752960640387,-151.0,0.00019415,2]
[373348959,1752960640397,-460.0,0.00019415,2]
[373348960,1752960640407,-560.31337563,0.00019415,2]
[373348961,1752960640416,-857.57,0.00019415,2]
[373348962,1752960640425,-827.16,0.00019415,2]
[373348963,1752960640434,-460.0,0.00019415,2]
[373348964,1752960640444,-460.0,0.00019415,2]
[373348965,1752960640453,-460.0,0.00019415,2]
[373348966,1752960640462,-460.0,0.00019415,2]
[373348968,1752960640471,-460.0,0.00019415,2]
[373348969,1752960640481,-460.0,0.00019415,2]
[373348970,1752960640491,-460.0,0.00019415,2]
[373348971,1752960640500,-460.0,0.00019415,2]
[373348973,1752960640510,-460.0,0.00019415,2]
[373348974,1752960640519,-460.0,0.00019415,2]
[373348975,1752960640529,-460.0,0.00019415,2]
[373348977,1752960640539,-460.0,0.00019415,2]
[373348979,1752960640550,-460.0,0.00019416,2]
[373348980,1752960640561,-460.0,0.00019416,2]
[373348981,1752960640570,-500.0,0.00019416,2]
[373348982,1752960640579,-163.03,0.00019416,2]
[373348983,1752960640589,-460.0,0.00019416,2]
[373348984,1752960640599,-151.0,0.00019416,2]
[373348985,1752960640608,-274.136827,0.00019416,2]
[373348986,1752960640618,-274.136827,0.00019416,2]
[373348987,1752960640627,-460.0,0.00019417,2]
[373348988,1752960640636,-460.0,0.00019417,2]
[373348989,1752960640647,-460.0,0.00019417,2]
[373348990,1752960640656,-460.0,0.00019417,2]
[373348991,1752960640665,-245.0,0.00019418,2]
[373348992,1752960640674,-151.0,0.00019418,2]
[373348993,1752960640684,-800.0,0.0001942,2]
[373348994,1752960640692,-1000.0,0.00019421,2]
[373348995,1752960640702,-3249.21134827,0.00019488,2]
[373348996,1752960640711,-124332.83828679,0.0001949,2]
[373348997,1752960640721,-153.0,0.00019562,2]
[373348998,1752960640730,-153.0,0.00019562,2]
[373349000,1752960640740,-457.46248827,0.00019573,2]
[373349002,1752960640751,-500.0,0.00019577,2]
[373349004,1752960640760,-152.474155,0.00019579,2]
[373349006,1752960640769,-3010.90107875,0.00019589,2]
[373349008,1752960640778,-300.0,0.00019639,2]
[373349010,1752960640788,-528.15372949,0.00019667,2]
[373349012,1752960640797,-500.0,0.00019687,2]
[373349014,1752960640806,-565.49,0.00019687,2]
[373349016,1752960640815,-460.0,0.00019688,2]
[373349018,1752960640825,-1477.4,0.00019688,2]
[373349019,1752960640834,-824.34,0.00019688,2]
[373349020,1752960640844,-1094.54,0.00019688,2]
[373349021,1752960640854,-460.0,0.00019688,2]
[373349022,1752960640864,-932.63,0.00019688,2]
[373349023,1752960640874,-578.0,0.00019688,2]
[373349024,1752960640884,-460.0,0.00019688,2]
[373349025,1752960640894,-1056.61,0.00019688,2]
[373349026,1752960640905,-476.76,0.00019688,2]
[373349027,1752960640914,-532.67,0.00019688,2]
[373349028,1752960640924,-528.44,0.00019688,2]
[373349029,1752960640934,-460.0,0.00019688,2]
[373349030,1752960640943,-573.84,0.00019688,2]
[373349031,1752960640953,-460.0,0.00019688,2]
[373349032,1752960640962,-460.0,0.00019688,2]
[373349033,1752960640972,-460.0,0.00019688,2]
[373349034,1752960640982,-460.0,0.00019689,2]
[373349035,1752960640991,-473.8,0.00019689,2]
[373349036,1752960641000,-460.0,0.00019689,2]
[373349037,1752960641010,-460.0,0.00019689,2]
[373349038,1752960641019,-460.0,0.00019689,2]
[373349039,1752960641029,-460.0,0.00019689,2]
[373349040,1752960641038,-460.0,0.00019689,2]
[373349041,1752960641047,-217.68,0.00019689,2]
[373349042,1752960641057,-460.0,0.00019689,2]
[373349043,1752960641067,-1106.36,0.00019689,2]
[373349044,1752960641075,-460.0,0.00019689,2]
[373349045,1752960641085,-460.0,0.00019689,2]
[373349046,1752960641199,-460.0,0.00019689,2]
[373349047,1752960641209,-618.95,0.00019689,2]
[373349048,1752960641219,-857.57,0.00019689,2]
[373349049,1752960641228,-827.16,0.00019689,2]
[373349050,1752960641237,-460.0,0.00019689,2]
[373349051,1752960641246,-460.0,0.00019689,2]
[373349052,1752960641255,-401.71284279,0.00019689,2]
[373349053,1752960641264,-460.0,0.00019689,2]
[373349054,1752960641273,-460.0,0.00019689,2]
[373349055,1752960641282,-460.0,0.00019689,2]
[373349056,1752960641292,-460.0,0.00019689,2]
[373349057,1752960641301,-460.0,0.0001969,2]
[373349058,1752960641310,-460.0,0.00019691,2]
[373349059,1752960641319,-151.0,0.00019692,2]
[373349060,1752960641328,-587.0,0.00019692,2]
[373349061,1752960641338,-533.0,0.00019692,2]
[373349062,1752960641347,-151.0,0.00019692,2]
[373349063,1752960641356,-151.0,0.00019692,2]
[373349064,1752960641365,-151.0,0.00019692,2]
[373349065,1752960641375,-160.0,0.00019702,2]
[373349066,1752960641384,-160.0,0.00019702,2]
[373349067,1752960641393,-160.0,0.00019702,2]
[373349068,1752960641403,-160.0,0.00019702,2]
[373349069,1752960641412,-839.454303,0.00019702,2]
[373349070,1752960641421,-160.0,0.00019702,2]
[373349071,1752960641430,-160.0,0.00019702,2]
[373349072,1752960641439,-12612.80205064,0.00019702,2]
[373349073,1752960641448,-214.52603969,0.00019702,2]
[373349074,1752960641457,-160.0,0.00019702,2]
[373349075,1752960641466,-230.94145789,0.00019702,2]
[373349076,1752960641474,-160.0,0.00019702,2]
[373349077,1752960641483,-525.83049785,0.00019702,2]
[373349078,1752960641492,-476.34170116,0.00019702,2]
[373349079,1752960641501,-215.67360783,0.00019702,2]
[373349080,1752960641509,-1680.0,0.00019735,2]
[373349081,1752960641518,-500.0,0.00019825,2]
[373349082,1752960641527,-610.38112545,0.00019825,2]
[373349083,1752960641536,-12999.20350234,0.00019826,2]
[373349084,1752960641545,-151.0,0.00019826,2]
[373349085,1752960641554,-151.0,0.00019826,2]
[373349086,1752960641563,-207.4,0.00019826,2]
[373349087,1752960641572,-151.0,0.00019826,2]
[373349088,1752960641581,-151.0,0.00019826,2]
[373349089,1752960641590,-151.0,0.00019826,2]
[373349090,1752960641599,-151.0,0.00019826,2]
[373349091,1752960641607,-151.0,0.00019826,2]
[373349092,1752960641616,-151.0,0.00019826,2]
[373349093,1752960641625,-151.0,0.00019826,2]
[373349094,1752960641634,-151.0,0.00019826,2]
[373349095,1752960641643,-151.0,0.00019826,2]
[373349096,1752960641653,-151.0,0.00019826,2]
[373349097,1752960641662,-151.0,0.00019826,2]
[373349098,1752960641671,-151.0,0.00019826,2]
[373349099,1752960641680,-151.0,0.00019826,2]
[373349100,1752960641689,-151.0,0.00019826,2]
[373349101,1752960641698,-151.0,0.00019826,2]
[373349102,1752960641707,-151.0,0.00019826,2]
[373349103,1752960641716,-151.0,0.00019826,2]
[373349104,1752960641724,-151.0,0.00019826,2]
[373349105,1752960641733,-1228.71032068,0.00019865,2]
[373349106,1752960641742,-500.0,0.00019899,2]
[373349107,1752960641751,-280.10405,0.000199,2]
[373349108,1752960641760,-280.10405,0.000199,2]
[373349109,1752960641770,-253.080943,0.000199,2]
[373349110,1752960641779,-253.080943,0.000199,2]
[373349111,1752960641789,-260.0,0.00019938,2]
[373349112,1752960641799,-981.74765151,0.0001995,2]
[373349113,1752960641808,-565.49,0.00019961,2]
[373349114,1752960641816,-460.0,0.00019962,2]
[373349115,1752960641826,-1477.4,0.00019962,2]
[373349116,1752960641835,-824.34,0.00019962,2]
[373349117,1752960641844,-1094.54,0.00019962,2]
[373349118,1752960641854,-932.63,0.00019962,2]
[373349119,1752960641864,-578.0,0.00019962,2]
[373349120,1752960641873,-460.0,0.00019962,2]
[373349121,1752960641883,-1056.61,0.00019962,2]
[373349122,1752960641892,-476.76,0.00019962,2]
[373349123,1752960641904,-532.67,0.00019962,2]
[373349124,1752960641913,-528.44,0.00019962,2]
[373349125,1752960641923,-460.0,0.00019962,2]
[373349126,1752960641932,-460.0,0.00019962,2]
[373349127,1752960641941,-392.51,0.00019962,2]
[373349128,1752960641951,-460.0,0.00019962,2]
[373349129,1752960641960,-460.0,0.00019963,2]
[373349130,1752960641970,-460.0,0.00019963,2]
[373349131,1752960641980,-460.0,0.00019963,2]
[373349132,1752960641989,-544.02,0.00019963,2]
[373349133,1752960641998,-1106.36,0.00019963,2]
[373349134,1752960642007,-460.0,0.00019963,2]
[373349135,1752960642017,-460.0,0.00019963,2]
[373349136,1752960642026,-460.0,0.00019963,2]
[373349137,1752960642035,-618.95,0.00019963,2]
[373349138,1752960642044,-857.57,0.00019963,2]
[373349139,1752960642053,-827.16,0.00019963,2]
[373349140,1752960642063,-460.0,0.00019963,2]
[373349141,1752960642072,-488.82441221,0.00019963,2]
[373349142,1752960642082,-460.0,0.00019963,2]
[373349143,1752960642094,-460.0,0.00019963,2]
[373349144,1752960642103,-460.0,0.00019964,2]
[373349145,1752960642112,-151.0,0.00019966,2]
[373349146,1752960642121,-587.0,0.00019966,2]
[373349147,1752960642131,-533.0,0.00019966,2]
[373349148,1752960642140,-198.0,0.00019966,2]
[373349149,1752960642152,-151.0,0.00019966,2]
[373349150,1752960642161,-198.0,0.00019966,2]
[373349151,1752960642172,-500.0,0.00019968,2]
[373349152,1752960642181,-320.1890901,0.00019973,2]
[373349153,1752960642191,-577.1515091,0.00019973,2]
[373349154,1752960642200,-306.0,0.00019973,2]
[373349155,1752960642210,-306.1586121,0.00019973,2]
[373349156,1752960642219,-168.0,0.00019974,2]
[373349157,1752960642229,-14300.23978458,0.0002,2]
[373349158,1752960642238,-8182.36496867,0.0002,2]
[373349159,1752960642248,-3193.95892131,0.0002,2]
[373349160,1752960642257,-362.6568148,0.0002,2]
[373349161,1752960642267,-71504.53584913,0.0002,2]
[373349162,1752960642276,-5929.79780296,0.0002,2]
[373349163,1752960642285,-71682.65200165,0.0002,2]
[373349164,1752960642295,-429.3901486,0.0002011,2]
[373349165,1752960642305,-429.3901486,0.0002011,2]
[373349166,1752960642314,-151.0,0.0002011,2]
[373349167,1752960642323,-274.136827,0.0002011,2]
[373349168,1752960642332,-274.136827,0.0002011,2]
[373349169,1752960642342,-219.904909,0.00020187,2]
[373349170,1752960642351,-151.0,0.00020219,2]
[373349171,1752960642360,-151.0,0.00020219,2]
[373349172,1752960642369,-151.0,0.00020219,2]
[373349173,1752960642378,-151.0,0.00020219,2]
[373349174,1752960642387,-801.98,0.00020227,3]
[373349175,1752960642396,-835.98,0.00020227,3]
[373349176,1752960642409,-417.98,0.00020227,3]
[373349177,1752960642418,-565.49,0.00020235,2]
[373349178,1752960642427,-460.0,0.00020236,2]
[373349179,1752960642436,-1477.4,0.00020236,2]
[373349180,1752960642445,-824.34,0.00020236,2]
[373349181,1752960642454,-1094.54,0.00020236,2]
[373349182,1752960642463,-932.63,0.00020236,2]
[373349183,1752960642472,-578.0,0.00020236,2]
[373349184,1752960642482,-211.51147321,0.00020236,2]
[373349185,1752960642491,-1056.61,0.00020236,2]
[373349186,1752960642500,-476.76,0.00020236,2]
[373349187,1752960642509,-532.67,0.00020236,2]
[373349188,1752960642518,-528.44,0.00020236,2]
[373349189,1752960642527,-250.38,0.00020236,2]
[373349190,1752960642536,-460.0,0.00020236,2]
[373349191,1752960642545,-382.33143859,0.00020237,2]
[373349192,1752960642554,-460.0,0.00020237,2]
[373349193,1752960642562,-460.0,0.00020237,2]
[373349194,1752960642571,-1106.36,0.00020237,2]
[373349195,1752960642580,-460.0,0.00020237,2]
[373349196,1752960642589,-460.0,0.00020237,2]
[373349197,1752960642598,-460.0,0.00020237,2]
[373349198,1752960642607,-618.95,0.00020237,2]
[373349199,1752960642616,-857.57,0.00020237,2]
[373349200,1752960642625,-827.16,0.00020237,2]
[373349201,1752960642633,-460.0,0.00020237,2]
[373349202,1752960642642,-460.0,0.00020237,2]
[373349203,1752960642652,-151.0,0.00020238,2]
[373349204,1752960642661,-151.0,0.00020238,2]
[373349205,1752960642670,-460.0,0.00020238,2]
[373349206,1752960642679,-151.0,0.00020238,2]
[373349207,1752960642688,-151.0,0.0002024,2]
[373349208,1752960642698,-587.0,0.0002024,2]
[373349209,1752960642707,-533.0,0.0002024,2]
[373349210,1752960642716,-220.44796763,0.0002024,2]
[373349211,1752960642725,-387.83084799,0.00020327,2]
[373349212,1752960642734,-168.0,0.00020356,2]
[373349213,1752960642743,-168.0,0.00020376,2]
[373349214,1752960642752,-159.1932489,0.00020384,2]
[373349215,1752960642761,-153.0,0.00020384,2]
[373349216,1752960642770,-306.0,0.00020384,2]
[373349217,1752960642779,-153.0,0.00020384,2]
[373349218,1752960642788,-3010.90107875,0.00020411,2]
[373349219,1752960642798,-360.0,0.00020486,2]
[373349220,1752960642807,-151.0,0.000205,2]
[373349221,1752960642816,-9292.58942053,0.000205,2]
[373349222,1752960642826,-565.49,0.00020509,2]
[373349223,1752960642835,-460.0,0.0002051,2]
[373349225,1752960642845,-1477.4,0.0002051,2]
[373349226,1752960642854,-824.34,0.0002051,2]
[373349227,1752960642863,-1094.54,0.0002051,2]
[373349228,1752960642873,-932.63,0.0002051,2]
[373349229,1752960642883,-578.0,0.0002051,2]
[373349230,1752960642892,-1056.61,0.0002051,2]
[373349231,1752960642903,-476.76,0.0002051,2]
[373349232,1752960642913,-532.67,0.0002051,2]
[373349233,1752960642922,-528.44,0.0002051,2]
[373349234,1752960642931,-460.0,0.0002051,2]
[373349235,1752960642941,-460.0,0.00020511,2]
[373349236,1752960642950,-460.0,0.00020511,2]
[373349237,1752960642960,-1106.36,0.00020511,2]
[373349238,1752960642970,-460.0,0.00020511,2]
[373349239,1752960642979,-460.0,0.00020511,2]
[373349241,1752960642989,-460.0,0.00020511,2]
[373349242,1752960642998,-618.95,0.00020511,2]
[373349243,1752960643007,-857.57,0.00020511,2]
[373349244,1752960643017,-827.16,0.00020511,2]
[373349245,1752960643026,-460.0,0.00020511,2]
[373349246,1752960643036,-460.0,0.00020511,2]
[373349247,1752960643045,-460.0,0.00020512,2]
[373349248,1752960643054,-151.776609,0.00020512,2]
[373349249,1752960643063,-151.0,0.00020514,2]
[373349250,1752960643072,-587.0,0.00020514,2]
[373349251,1752960643081,-533.0,0.00020514,2]
[373349252,1752960643092,-800.0,0.00020516,2]
[373349253,1752960643101,-160.0,0.00020521,3]
[373349255,1752960643110,-476.34170116,0.00020521,3]
[373349257,1752960643120,-12612.80205064,0.00020521,3]
[373349258,1752960643129,-151.0,0.00020521,2]
[373349259,1752960643140,-151.0,0.00020521,2]
[373349260,1752960643151,-151.0,0.00020521,2]
[373349261,1752960643160,-151.0,0.00020521,2]
[373349262,1752960643170,-280.10405,0.00020521,2]
[373349263,1752960643179,-280.10405,0.00020521,2]
[373349264,1752960643188,-253.080943,0.00020521,2]
[373349265,1752960643198,-253.080943,0.00020521,2]
[373349266,1752960643207,-3427.0,0.00020551,2]
[373349267,1752960643216,-168.0,0.00020631,2]
[373349268,1752960643225,-942.059246,0.00020639,8]
[373349269,1752960643234,-168.0,0.00020661,2]
[373349270,1752960643243,-152.474155,0.00020706,3]
[373349271,1752960643253,-300.395139,0.00020739,2]
[373349272,1752960643262,-300.395139,0.00020739,2]
[373349273,1752960643271,-151.0,0.00020739,2]
[373349274,1752960643280,-20904.05897788,0.00020739,2]
[373349275,1752960643289,-151.0,0.00020768,2]
[373349276,1752960643298,-151.0,0.00020768,2]
[373349277,1752960643307,-1769.976,0.00020781,2]
[373349278,1752960643316,-178.336,0.00020781,2]
[373349279,1752960643325,-565.49,0.00020783,2]
[373349280,1752960643334,-460.0,0.00020784,2]
[373349281,1752960643343,-1477.4,0.00020784,2]
[373349282,1752960643352,-824.34,0.00020784,2]
[373349283,1752960643361,-1094.54,0.00020784,2]
[373349284,1752960643370,-932.63,0.00020784,2]
[373349285,1752960643379,-578.0,0.00020784,2]
[373349286,1752960643388,-1056.61,0.00020784,2]
[373349287,1752960643400,-532.67,0.00020784,2]
[373349288,1752960643409,-476.76,0.00020784,2]
[373349289,1752960643418,-528.44,0.00020784,2]
[373349290,1752960643427,-460.0,0.00020784,2]
[373349291,1752960643437,-460.0,0.00020785,2]
[373349292,1752960643447,-460.0,0.00020785,2]
[373349293,1752960643456,-1106.36,0.00020785,2]
[373349294,1752960643465,-460.0,0.00020785,2]
[373349295,1752960643475,-460.0,0.00020785,2]
[373349296,1752960643483,-460.0,0.00020785,2]
[373349297,1752960643493,-618.95,0.00020785,2]
[373349298,1752960643501,-857.57,0.00020785,2]
[373349299,1752960643511,-827.16,0.00020785,2]
[373349300,1752960643520,-460.0,0.00020785,2]
[373349301,1752960643529,-460.0,0.00020785,2]
[373349302,1752960643538,-450.37205025,0.00020786,2]
[373349303,1752960643547,-151.0,0.00020787,2]
[373349304,1752960643556,-245.0,0.00020788,2]
[373349305,1752960643565,-587.0,0.00020788,2]
[373349306,1752960643574,-533.0,0.00020788,2]
[373349307,1752960643583,-152.474155,0.00020924,2]
[373349308,1752960643593,-151.0,0.00020935,2]
[373349309,1752960643602,-151.0,0.00020935,2]
[373349310,1752960643612,-151.0,0.00020935,2]
[373349311,1752960643622,-224.2,0.0002094,2]
[373349314,1752960643719,-168.0,0.00020962,2]
[373349316,1752960643743,-173.437322,0.0002099,2]
[373349318,1752960643753,-274.136827,0.0002099,2]
[373349319,1752960643762,-274.136827,0.0002099,2]
[373349320,1752960643772,-17671.62993046,0.0002099,3]
[373349322,1752960643781,-151.0,0.00021,2]
[373349323,1752960643790,-229.538593,0.00021,2]
[373349324,1752960643800,-229.538593,0.00021,2]
[373349325,1752960643810,-151.0,0.00021,2]
[373349326,1752960643819,-151.0,0.00021,2]
[373349327,1752960643828,-300.395139,0.00021,2]
[373349329,1752960643838,-300.395139,0.00021,2]
[373349331,1752960643847,-151.0,0.00021,2]
[373349333,1752960643857,-151.0,0.00021,2]
[373349334,1752960643866,-151.0,0.00021,2]
[373349335,1752960643875,-1612.77,0.00021,2]
[373349336,1752960643885,-152.474155,0.00021,4]
[373349337,1752960643895,-47473.52306046,0.00021,4]
[373349338,1752960644035,-31015.58741611,0.00021,4]
[373349339,1752960644047,-267.09860424,0.00021,4]
[373349340,1752960644058,-783.8139614,0.00021,4]
[373349341,1752960644069,-10000.01268,0.00021,4]
[373349342,1752960644124,-65738.19208725,0.00021,4]
[373349343,1752960644134,-150.999999,0.00021,2]
[373349344,1752960644143,-460.0,0.00021034,2]
[373349345,1752960644154,-153.0,0.00021041,2]
[373349346,1752960644163,-577.1515091,0.00021041,2]
[373349347,1752960644174,-153.0,0.00021041,2]
[373349348,1752960644183,-153.0,0.00021041,2]
[373349349,1752960644192,-565.49,0.00021057,2]
[373349350,1752960644201,-460.0,0.00021058,2]
[373349351,1752960644210,-1477.4,0.00021058,2]
[373349352,1752960644219,-824.34,0.00021058,2]
[373349353,1752960644228,-1094.54,0.00021058,2]
[373349354,1752960644237,-932.63,0.00021058,2]
[373349355,1752960644246,-578.0,0.00021058,2]
[373349356,1752960644256,-1056.61,0.00021058,2]
[373349357,1752960644265,-532.67,0.00021058,2]
[373349358,1752960644275,-476.76,0.00021058,2]
[373349359,1752960644284,-528.44,0.00021058,2]
[373349361,1752960644293,-460.0,0.00021058,2]
[373349363,1752960644302,-460.0,0.00021059,2]
[373349364,1752960644311,-519.84493682,0.00021059,2]
[373349366,1752960644320,-1106.36,0.00021059,2]
[373349368,1752960644329,-460.0,0.00021059,2]
[373349369,1752960644338,-460.0,0.00021059,2]
[373349370,1752960644347,-460.0,0.00021059,2]
[373349371,1752960644356,-618.95,0.00021059,2]
[373349372,1752960644365,-280.10405,0.00021059,2]
[373349373,1752960644374,-280.10405,0.00021059,2]
[373349374,1752960644383,-857.57,0.00021059,2]
[373349375,1752960644392,-827.16,0.00021059,2]
[373349376,1752960644403,-460.0,0.00021059,2]
[373349377,1752960644412,-460.0,0.00021059,2]
[373349378,1752960644422,-151.0,0.0002106,2]
[373349379,1752960644431,-151.0,0.0002106,2]
[373349380,1752960644440,-180.879651,0.0002106,2]
[373349381,1752960644450,-151.0,0.0002106,2]
[373349382,1752960644459,-253.080943,0.0002106,2]
[373349383,1752960644468,-253.080943,0.0002106,2]
[373349384,1752960644477,-2219.95526191,0.00021061,2]
[373349385,1752960644486,-324.0,0.00021061,2]
[373349386,1752960644496,-324.0,0.00021061,2]
[373349387,1752960644505,-323.35842337,0.00021061,2]
[373349388,1752960644514,-587.0,0.00021062,2]
[373349389,1752960644523,-533.0,0.00021062,2]
[373349390,1752960644532,-3000.0,0.0002107,2]
[373349391,1752960644541,-152.132934,0.00021072,2]
[373349392,1752960644550,-168.0,0.00021074,2]
[373349393,1752960644560,-3000.0,0.0002108,2]